bitfinex-derivatives/quotes_BTCF0:USTF0_20210705
["timestamp","ask_amount","ask_price","bid_price","bid_amount"]
[1625457912732,1.35835548,34258.0,34257.0,0.24057544]
[1625457912845,1.35835548,34258.0,34257.0,0.35857544]
[1625457912932,1.35835548,34258.0,34257.0,0.29957544]
[1625457913035,1.35835548,34258.0,34257.0,0.35857544]
[1625457913132,1.35835548,34258.0,34257.0,0.45857544]
[1625457913333,1.35835548,34258.0,34257.0,0.39957544]
[1625457913532,1.35835548,34258.0,34257.0,0.159]
[1625457914684,1.59893092,34258.0,34257.0,0.159]
[1625457915887,1.68663092,34258.0,34257.0,0.159]
[1625457916237,1.59893092,34258.0,34257.0,0.1]
[1625457916941,3.12527762,34258.0,34257.0,0.1]
[1625457917040,3.12527762,34258.0,34257.0,0.159]
[1625457917396,3.12527762,34258.0,34257.0,0.218]
[1625457917894,1.59893092,34258.0,34257.0,0.218]
[1625457917995,1.90792092,34258.0,34257.0,0.218]
[1625457918695,1.90792092,34258.0,34257.0,0.275]
[1625457919096,1.35835548,34258.0,34257.0,0.275]
[1625457919197,1.35775069,34259.0,34257.0,0.27950855]
[1625457919296,1.35775069,34259.0,34257.0,0.52071855]
[1625457919497,1.35775069,34259.0,34257.0,0.51621]
[1625457919698,1.35775069,34259.0,34257.0,0.41621]
[1625457919799,1.35903734,34263.0,34257.0,0.41621]
[1625457920301,1.35936304,34264.0,34257.0,0.41621]
[1625457920701,1.35936304,34264.0,34263.0,0.48115088]
[1625457920801,1.35936304,34264.0,34263.0,0.65615088]
[1625457920902,1.35936304,34264.0,34263.0,0.75615088]
[1625457921049,1.35936304,34264.0,34263.0,0.69715088]
[1625457921203,1.35936304,34264.0,34263.0,0.70165335]
[1625457921303,1.35936304,34264.0,34263.0,0.76065335]
[1625457921413,1.35936304,34264.0,34263.0,0.70165335]
[1625457921501,1.35936304,34264.0,34263.0,0.64015088]
[1625457921603,1.35936304,34264.0,34263.0,0.159]
[1625457922455,1.35936304,34264.0,34263.0,0.1]
[1625457922753,1.59993848,34264.0,34263.0,0.1]
[1625457922855,1.61410464,34264.0,34263.0,0.1]
[1625457923255,3.14160645,34264.0,34263.0,0.1]
[1625457924405,3.20060645,34264.0,34263.0,0.1]
[1625457925457,3.28730645,34264.0,34263.0,0.1]
[1625457925808,4.98205733,34264.0,34263.0,0.1]
[1625457925907,5.23124733,34264.0,34263.0,0.1]
[1625457926108,5.14454733,34264.0,34263.0,0.1]
[1625457926512,3.44979645,34264.0,34263.0,0.1]
[1625457926722,3.44979645,34264.0,34253.0,0.24057544]
[1625457926823,0.48115088,34254.0,34243.0,0.24057544]
[1625457926913,0.70391088,34254.0,34243.0,0.24057544]
[1625457927008,0.70391088,34254.0,34249.0,0.29957544]
[1625457927136,0.70391088,34254.0,34250.0,0.00450462]
[1625457927214,0.70391088,34254.0,34250.0,0.06350462]
[1625457927409,3.5279,34251.0,34250.0,0.059]
[1625457927914,4.88165041,34251.0,34250.0,0.059]
[1625457928764,5.12222585,34251.0,34250.0,0.059]
[1625457928863,6.64471817,34251.0,34250.0,0.059]
[1625457929213,3.11681817,34251.0,34250.0,0.059]
[1625457931116,1.59432585,34251.0,34250.0,0.059]
[1625457931416,2.77887793,34251.0,34250.0,0.059]
[1625457933370,2.77887793,34251.0,34244.0,0.057]
[1625457933470,2.77887793,34251.0,34244.0,0.116]
[1625457933572,2.77887793,34251.0,34244.0,0.175]
[1625457934022,1.18436696,34245.0,34244.0,0.175]
[1625457934126,1.46803696,34245.0,34244.0,0.175]
[1625457934372,1.46803696,34245.0,34244.0,0.057]
[1625457934823,1.7086124,34245.0,34244.0,0.057]
[1625457934930,1.7086124,34245.0,34243.0,0.24057544]
[1625457934931,3.06113771,34245.0,34243.0,0.24057544]
[1625457935475,1.1835533,34244.0,34243.0,0.24057544]
[1625457936629,1.1835533,34244.0,34243.0,0.29957544]
[1625457936827,1.1835533,34244.0,34243.0,0.059]
[1625457937480,1.1835533,34244.0,34240.0,0.24057544]
[1625457937581,2.53657319,34244.0,34243.0,0.059]
[1625457937781,2.53657319,34244.0,34240.0,0.24057544]
[1625457937881,2.53657319,34244.0,34240.0,0.35657544]
[1625457938383,0.24057544,34245.0,34240.0,0.35657544]
[1625457938384,1.18453394,34243.0,34240.0,0.29957544]
[1625457938483,1.18453394,34243.0,34241.0,0.057]
[1625457938586,1.18453394,34243.0,34241.0,0.116]
[1625457938786,1.18453394,34243.0,34241.0,0.059]
[1625457938888,0.24057544,34242.0,34241.0,0.059]
[1625457938986,0.47957544,34242.0,34241.0,0.059]
[1625457939440,0.47957544,34242.0,34240.0,0.29757544]
[1625457939538,0.47957544,34242.0,34240.0,0.35657544]
[1625457939739,0.47957544,34242.0,34240.0,0.29957544]
[1625457940741,0.47957544,34242.0,34240.0,0.35657544]
[1625457940945,0.47957544,34242.0,34233.0,0.24057544]
[1625457941044,0.47957544,34242.0,34233.0,0.35857544]
[1625457941147,2.19977746,34241.0,34233.0,0.35857544]
[1625457941244,2.19977746,34241.0,34234.0,0.00450673]
[1625457941345,2.19977746,34241.0,34234.0,0.06350673]
[1625457941447,2.19977746,34241.0,34234.0,0.12250673]
[1625457941645,1.01460273,34237.0,34234.0,0.12250673]
[1625457941745,1.01460273,34237.0,34235.0,0.06150687]
[1625457941845,5.71670273,34237.0,34235.0,0.17950687]
[1625457942047,5.71670273,34237.0,34235.0,0.175]
[1625457942451,1.01460273,34237.0,34235.0,0.175]
[1625457942852,0.24057544,34236.0,34235.0,0.175]
[1625457943301,0.24057544,34236.0,34235.0,0.17950691]
[1625457943901,0.24057544,34236.0,34235.0,0.175]
[1625457944402,0.24057544,34236.0,34229.0,0.84135214]
[1625457944504,0.24057544,34236.0,34229.0,0.90035214]
[1625457944602,0.24057544,34236.0,34231.0,0.059]
[1625457944801,0.24057544,34236.0,34231.0,0.118]
[1625457944903,0.48115088,34232.0,34231.0,0.059]
[1625457945004,0.79934088,34232.0,34230.0,1.03055387]
[1625457945115,0.79934088,34232.0,34227.0,1.20197682]
[1625457945305,0.79934088,34232.0,34231.0,0.00450718]
[1625457945605,0.79934088,34232.0,34228.0,0.00450728]
[1625457945706,0.79934088,34232.0,34228.0,0.12250728]
[1625457945805,0.79934088,34232.0,34231.0,0.00450726]
[1625457946108,0.79934088,34232.0,34229.0,0.00450724]
[1625457946206,0.79934088,34232.0,34229.0,0.06350724]
[1625457946307,0.79934088,34232.0,34229.0,0.12250724]
[1625457946408,0.79934088,34232.0,34229.0,0.118]
[1625457946608,0.79934088,34232.0,34230.0,0.00450731]
[1625457947013,0.24057544,34231.0,34230.0,0.00450731]
[1625457947312,0.24057544,34231.0,34227.0,0.00450748]
[1625457947410,0.24057544,34231.0,34230.0,0.059]
[1625457947513,0.24057544,34231.0,34230.0,0.00450745]
[1625457947611,0.24057544,34231.0,34230.0,0.06350745]
[1625457947812,0.24057544,34231.0,34230.0,0.059]
[1625457948212,0.24057544,34231.0,34226.0,0.01]
[1625457948313,0.51143544,34231.0,34226.0,0.069]
[1625457948415,0.51143544,34231.0,34226.0,0.128]
[1625457948613,0.51143544,34231.0,34227.0,0.00450751]
[1625457948716,0.51143544,34231.0,34227.0,0.06350751]
[1625457948918,0.24057544,34228.0,34227.0,0.06350751]
[1625457949115,0.24057544,34228.0,34227.0,0.059]
[1625457949414,0.24057544,34228.0,34227.0,0.06350748]
[1625457950770,0.24057544,34228.0,34227.0,0.12250748]
[1625457951420,0.46453544,34228.0,34227.0,0.12250748]
[1625457955231,0.46453544,34228.0,34227.0,0.20833559]
[1625457956582,0.46453544,34228.0,34227.0,0.14933559]
[1625457957084,0.46453544,34228.0,34227.0,0.20833559]
[1625457957186,0.46453544,34228.0,34227.0,0.14933559]
[1625457957533,0.46453544,34228.0,34227.0,0.20833559]
[1625457957884,0.24057544,34228.0,34227.0,0.20833559]
[1625457958134,0.24057544,34228.0,34227.0,0.12250748]
[1625457958336,0.24057544,34228.0,34227.0,0.06350748]
[1625457958434,0.0847302,34230.0,34227.0,0.06350748]
[1625457958536,0.0847302,34230.0,34227.0,0.43020748]
[1625457958738,0.0847302,34230.0,34228.0,0.00450521]
[1625457958837,0.0847302,34230.0,34228.0,0.12250521]
[1625457959039,0.24057544,34231.0,34229.0,0.24057544]
[1625457959136,0.24057544,34231.0,34229.0,0.35857544]
[1625457959236,0.24057544,34231.0,34229.0,0.36308073]
[1625457959538,0.24057544,34231.0,34230.0,0.00450524]
[1625457959740,0.24057544,34231.0,34230.0,0.12250524]
[1625457961194,0.24057544,34231.0,34230.0,0.06350524]
[1625457961294,0.24057544,34231.0,34230.0,0.00450524]
[1625457961995,0.24057544,34231.0,34230.0,0.12250524]
[1625457962095,0.24057544,34231.0,34230.0,0.06350524]
[1625457962096,0.32579581,34231.0,34230.0,0.06350524]
[1625457962696,0.24057544,34231.0,34230.0,0.12250524]
[1625457964051,0.24057544,34231.0,34230.0,0.06350524]
[1625457964150,0.24057544,34231.0,34230.0,0.059]
[1625457964248,0.24057544,34231.0,34230.0,0.06350555]
[1625457964349,0.24057544,34231.0,34230.0,0.12250555]
[1625457964952,0.46248544,34231.0,34230.0,0.12250555]
[1625457965350,0.46248544,34231.0,34230.0,0.06350555]
[1625457966351,0.46248544,34231.0,34230.0,0.12250555]
[1625457967001,0.46248544,34231.0,34230.0,0.06350555]
[1625457968005,0.46248544,34231.0,34230.0,0.059]
[1625457968757,0.51948544,34231.0,34230.0,0.059]
[1625457968858,0.51948544,34231.0,34226.0,0.08526263]
[1625457968959,0.57848544,34231.0,34226.0,0.08526263]
[1625457969059,0.48115088,34227.0,34226.0,0.14426263]
[1625457969164,0.53815088,34227.0,34226.0,0.059]
[1625457969265,0.48115088,34227.0,34223.0,0.08495369]
[1625457969366,0.48115088,34227.0,34223.0,0.14395369]
[1625457969565,1.68308629,34227.0,34223.0,0.059]
[1625457970065,1.20198202,34226.0,34223.0,0.059]
[1625457970465,1.20198202,34226.0,34224.0,0.00450733]
[1625457970667,0.057,34225.0,34224.0,0.00450733]
[1625457970917,1.20198202,34226.0,34224.0,0.00450733]
[1625457971017,0.24057544,34225.0,34220.0,0.00450737]
[1625457971118,0.24057544,34225.0,34220.0,0.06350737]
[1625457971222,0.24057544,34225.0,34220.0,0.12250737]
[1625457971318,0.08598036,34221.0,34220.0,0.12250737]
[1625457971418,0.37694036,34221.0,34220.0,0.12250737]
[1625457971819,0.43394036,34221.0,34220.0,0.12250737]
[1625457971919,0.37694036,34221.0,34220.0,0.06350737]
[1625457972022,0.29096,34221.0,34220.0,0.06350737]
[1625457972373,0.29096,34221.0,34220.0,0.12250737]
[1625457972574,0.37690679,34221.0,34220.0,0.12250737]
[1625457973078,0.61748223,34221.0,34220.0,0.12250737]
[1625457973575,0.67448223,34221.0,34220.0,0.06350737]
[1625457973676,0.67448223,34221.0,34220.0,0.00450737]
[1625457973775,0.73348223,34221.0,34220.0,0.00450737]
[1625457974080,1.33412068,34221.0,34220.0,0.00450737]
[1625457974477,1.33412068,34221.0,34215.0,0.00450639]
[1625457974577,1.39312068,34221.0,34215.0,0.00450639]
[1625457974677,3.62305212,34221.0,34215.0,0.00450639]
[1625457975076,3.62305212,34221.0,34214.0,0.00450689]
[1625457975077,1.51030271,34216.0,34214.0,0.00450689]
[1625457975181,2.2534611,34216.0,34214.0,0.00450689]
[1625457975276,2.2534611,34216.0,34210.0,0.08576655]
[1625457975376,2.2534611,34216.0,34210.0,0.14476655]
[1625457975476,2.2534611,34216.0,34210.0,0.20376655]
[1625457975578,0.68614132,34215.0,34211.0,0.00450692]
[1625457975678,0.74314132,34215.0,34211.0,0.06350692]
[1625457975877,0.68614132,34215.0,34211.0,0.06350692]
[1625457976079,0.08593018,34214.0,34211.0,0.06350692]
[1625457976179,0.41687018,34214.0,34212.0,0.00450304]
[1625457976278,0.41687018,34214.0,34212.0,0.06350304]
[1625457976680,0.41687018,34214.0,34212.0,0.00450304]
[1625457976780,0.41687018,34214.0,34213.0,0.0045031]
[1625457976880,0.33094,34214.0,34213.0,0.0045031]
[1625457977081,0.57151544,34214.0,34213.0,0.0045031]
[1625457977180,0.62851544,34214.0,34213.0,0.0045031]
[1625457977280,0.62851544,34214.0,34211.0,0.00450328]
[1625457977482,0.62851544,34214.0,34213.0,0.00450338]
[1625457977735,0.68751544,34214.0,34213.0,0.00450338]
[1625457977834,0.65737892,34214.0,34211.0,0.00450338]
[1625457977934,0.65737892,34214.0,34211.0,0.06350338]
[1625457978035,0.65737892,34214.0,34213.0,0.00450328]
[1625457978336,0.65737892,34214.0,34212.0,0.0045033]
[1625457978635,0.77337892,34214.0,34210.0,0.00450326]
[1625457978835,0.77337892,34214.0,34209.0,0.08571976]
[1625457979084,0.48115088,34210.0,34209.0,0.08571976]
[1625457979184,0.59715088,34210.0,34209.0,0.08571976]
[1625457979283,0.59715088,34210.0,34209.0,0.14471976]
[1625457979384,0.59715088,34210.0,34209.0,0.14922346]
[1625457979486,0.59715088,34210.0,34209.0,0.09022346]
[1625457979586,0.59715088,34210.0,34209.0,0.0045037]
[1625457979587,1.28187245,34210.0,34209.0,0.0045037]
[1625457979688,1.28187245,34210.0,34208.0,0.01]
[1625457979786,1.28187245,34210.0,34204.0,0.08576272]
[1625457979891,1.28187245,34210.0,34204.0,0.14476272]
[1625457980188,1.28187245,34210.0,34205.0,0.00450372]
[1625457980290,1.28187245,34210.0,34205.0,0.06350372]
[1625457980591,1.28187245,34210.0,34205.0,0.00450372]
[1625457980691,0.08566719,34209.0,34203.0,0.08569174]
[1625457980791,0.14466719,34209.0,34205.0,0.059]
[1625457980890,0.057,34208.0,34205.0,0.059]
[1625457980994,0.0855753,34207.0,34205.0,0.059]
[1625457981092,0.48115088,34206.0,34205.0,0.059]
[1625457981193,0.53815088,34206.0,34205.0,0.059]
[1625457982046,0.59715088,34206.0,34205.0,0.059]
[1625457982948,0.68265655,34206.0,34205.0,0.059]
[1625457983400,0.59715088,34206.0,34205.0,0.059]
[1625457983497,0.59715088,34206.0,34200.0,0.08567552]
[1625457983698,0.59715088,34206.0,34200.0,0.14467552]
[1625457983948,0.68260944,34206.0,34200.0,0.14467552]
[1625457984552,0.08537927,34205.0,34200.0,0.059]
[1625457984651,0.14437927,34205.0,34200.0,0.059]
[1625457984753,0.057,34204.0,34200.0,0.059]
[1625457984950,0.116,34204.0,34200.0,0.059]
[1625457985051,0.08537927,34205.0,34200.0,0.118]
[1625457985166,0.24057544,34201.0,34200.0,0.4022]
[1625457985755,0.24057544,34201.0,34200.0,0.3432]
[1625457986056,0.24057544,34201.0,34200.0,0.4022]
[1625457986358,0.24057544,34201.0,34200.0,1.08773586]
[1625457986908,0.20017544,34201.0,34200.0,1.08773586]
[1625457987008,0.18867544,34201.0,34200.0,1.08773586]
[1625457987112,0.48115088,34206.0,34200.0,1.33281287]
[1625457987558,0.48115088,34206.0,34205.0,4.8936]
[1625457987658,0.48115088,34206.0,34205.0,4.9526]
[1625457987758,0.48115088,34206.0,34205.0,5.0116]
[1625457989164,0.48115088,34206.0,34205.0,5.25217544]
[1625457989471,0.48115088,34206.0,34205.0,5.94190083]
[1625457990270,0.48115088,34206.0,34205.0,6.96975283]
[1625457990619,0.48115088,34206.0,34205.0,2.07615283]
[1625457990720,0.48115088,34206.0,34205.0,2.17615283]
[1625457992370,0.40815088,34206.0,34205.0,2.17615283]
[1625457993323,0.40815088,34206.0,34205.0,3.37555569]
[1625457995326,0.40815088,34206.0,34205.0,2.17615283]
[1625457995776,0.71772088,34206.0,34205.0,2.17615283]
[1625457995978,0.71772088,34206.0,34205.0,0.27996919]
[1625457996133,0.30957,34206.0,34205.0,0.27996919]
[1625457996327,0.30957,34206.0,34205.0,0.33896919]
[1625457996728,0.30957,34206.0,34205.0,1.53873323]
[1625457996827,0.24057544,34210.0,34205.0,1.53873323]
[1625457996927,0.24057544,34210.0,34205.0,1.59773323]
[1625457997177,0.24057544,34210.0,34209.0,0.24057544]
[1625457997277,0.24057544,34210.0,34209.0,0.29957544]
[1625457997478,0.24057544,34210.0,34209.0,0.30407826]
[1625457997586,0.24057544,34210.0,34209.0,0.38977742]
[1625457997879,0.24057544,34210.0,34209.0,0.48977742]
[1625457999181,0.24057544,34210.0,34209.0,0.40407826]
[1625458001586,0.24057544,34210.0,34209.0,0.9185254]
[1625458014970,0.24057544,34210.0,34209.0,0.9775254]
[1625458015170,0.24057544,34210.0,34209.0,1.2404054]
[1625458015469,0.16787544,34210.0,34209.0,1.2404054]
[1625458015569,0.16787544,34210.0,34209.0,1.25965436]
[1625458015669,0.06317105,34212.0,34209.0,1.25965436]
[1625458015870,0.51151403,34218.0,34209.0,3.83655104]
[1625458015971,0.51151403,34218.0,34210.0,0.01059804]
[1625458016069,0.51151403,34218.0,34210.0,0.14174685]
[1625458016273,0.75204934,34220.0,34217.0,0.51540342]
[1625458016375,0.75204934,34220.0,34217.0,0.83767342]
[1625458016472,0.75204934,34220.0,34217.0,0.89667342]
[1625458016671,0.75204934,34220.0,34218.0,0.0044965]
[1625458016772,0.75204934,34220.0,34218.0,0.63789457]
[1625458017173,0.75204934,34220.0,34219.0,0.10449656]
[1625458017275,0.51149054,34221.0,34219.0,0.64464744]
[1625458017373,0.057,34220.0,34219.0,0.10449656]
[1625458017473,0.34991,34220.0,34214.0,1.20260798]
[1625458017574,0.55481,34220.0,34214.0,1.20260798]
[1625458017673,1.06901419,34220.0,34214.0,1.20260798]
[1625458017772,1.01001419,34220.0,34214.0,1.20260798]
[1625458017873,1.12801419,34220.0,34214.0,1.20260798]
[1625458017974,0.01421826,34219.0,34215.0,0.00449341]
[1625458018077,4.3116,34218.0,34207.0,1.20279572]
[1625458018176,0.057,34217.0,34207.0,1.20279572]
[1625458018277,0.116,34217.0,34207.0,1.20279572]
[1625458018375,0.5,34216.0,34207.0,1.14379572]
[1625458018477,0.057,34215.0,34208.0,0.004489]
[1625458018575,0.116,34215.0,34208.0,0.004489]
[1625458018675,1.69264682,34212.0,34208.0,0.004489]
[1625458018778,0.057,34211.0,34190.0,1.375266]
[1625458018875,0.116,34211.0,34190.0,1.375266]
[1625458018974,0.175,34211.0,34190.0,1.375266]
[1625458019074,0.18923468,34211.0,34190.0,1.375266]
[1625458019275,0.01423491,34210.0,34202.0,0.00449005]
[1625458019375,0.07323491,34210.0,34202.0,0.00449005]
[1625458019476,1.52120581,34203.0,34202.0,0.00449005]
[1625458019577,2.00084581,34203.0,34202.0,0.00449005]
[1625458019876,1.83144527,34203.0,34202.0,0.00449005]
[1625458020076,1.83144527,34203.0,34192.0,0.00448994]
[1625458020178,1.83144527,34203.0,34192.0,0.06348994]
[1625458020628,1.83144527,34203.0,34193.0,0.00449007]
[1625458020729,1.34859786,34201.0,34193.0,0.00449007]
[1625458020828,0.057,34200.0,34193.0,0.00449007]
[1625458020933,0.175,34200.0,34193.0,0.00449007]
[1625458021134,1.52277995,34200.0,34192.0,0.00449012]
[1625458021338,0.48115088,34193.0,34192.0,0.06349012]
[1625458021437,0.77491088,34193.0,34192.0,0.06349012]
[1625458022189,0.77491088,34193.0,34192.0,0.00449012]
[1625458022338,0.77491088,34193.0,34192.0,0.06349012]
[1625458022589,0.83191088,34193.0,34192.0,0.00449012]
[1625458023391,0.89091088,34193.0,34192.0,0.00449012]
[1625458023701,0.94991088,34193.0,34192.0,0.00449012]
[1625458023802,0.89091088,34193.0,34192.0,0.00449012]
[1625458023906,0.59715088,34193.0,34187.0,0.00449056]
[1625458023999,0.53815088,34193.0,34187.0,0.00449056]
[1625458024096,0.59715088,34193.0,34187.0,0.06349056]
[1625458024196,0.53815088,34193.0,34187.0,0.12249056]
[1625458024297,0.59715088,34193.0,34187.0,0.00449056]
[1625458024397,0.93714088,34193.0,34188.0,0.00449084]
[1625458024727,0.93714088,34193.0,34187.0,0.00449121]
[1625458024948,0.93714088,34193.0,34186.0,0.06325084]
[1625458025146,1.3391568,34191.0,34186.0,0.06325084]
[1625458025245,4.7517,34190.0,34186.0,0.06325084]
[1625458025348,0.48115088,34187.0,34186.0,0.06325084]
[1625458025445,0.59715088,34187.0,34186.0,0.06325084]
[1625458025747,0.59715088,34187.0,34186.0,0.06774278]
[1625458026100,4.34405088,34187.0,34186.0,0.06774278]
[1625458026298,4.34405088,34187.0,34186.0,0.06325084]
[1625458026299,5.34754599,34187.0,34186.0,0.06325084]
[1625458026648,5.40654599,34187.0,34186.0,0.06325084]
[1625458027749,5.34754599,34187.0,34186.0,0.06325084]
[1625458027850,1.60064599,34187.0,34186.0,0.06325084]
[1625458028051,0.59715088,34187.0,34186.0,0.06325084]
[1625458028355,0.65615088,34187.0,34186.0,0.06325084]
[1625458028451,0.59715088,34187.0,34186.0,0.06325084]
[1625458028861,0.83426286,34192.0,34186.0,0.10225084]
[1625458028993,0.83426286,34192.0,34186.0,0.16125084]
[1625458029089,0.83426286,34192.0,34187.0,0.057]
[1625458029181,1.33392977,34197.0,34187.0,0.116]
[1625458029280,1.33392977,34197.0,34187.0,0.175]
[1625458029362,1.33392977,34197.0,34196.0,0.96230176]
[1625458029462,1.33392977,34197.0,34196.0,1.33593176]
[1625458029555,1.33392977,34197.0,34196.0,1.39293176]
[1625458029654,1.3843399,34210.0,34196.0,1.39293176]
[1625458029655,1.50414778,34209.0,34196.0,1.39293176]
[1625458029854,1.50414778,34209.0,34196.0,1.49293176]
[1625458029954,1.56314778,34209.0,34196.0,1.56523176]
[1625458030110,0.059,34209.0,34196.0,1.56523176]
[1625458030217,0.059,34209.0,34196.0,1.46523176]
[1625458030322,0.9437,34210.0,34196.0,5.57073176]
[1625458030811,0.9437,34210.0,34196.0,5.51173176]
[1625458030906,0.9437,34210.0,34196.0,1.46523176]
[1625458030907,1.0027,34210.0,34196.0,1.46523176]
[1625458031007,0.9437,34210.0,34196.0,1.46523176]
[1625458031106,1.0027,34210.0,34196.0,1.52423176]
[1625458031207,1.0027,34210.0,34196.0,1.46723176]
[1625458031310,1.0027,34210.0,34196.0,1.40823176]
[1625458031311,0.33366328,34202.0,34196.0,1.40823176]
[1625458031408,0.33366328,34202.0,34201.0,0.48115088]
[1625458031508,0.33366328,34202.0,34201.0,0.54015088]
[1625458031612,1.18427544,34210.0,34201.0,0.54015088]
[1625458031709,2.7428687,34210.0,34201.0,0.54015088]
[1625458031809,2.8018687,34210.0,34201.0,0.54015088]
[1625458032312,2.6838687,34210.0,34201.0,0.59915088]
[1625458032611,2.6838687,34210.0,34202.0,0.057]
[1625458032710,2.6838687,34210.0,34202.0,0.175]
[1625458032811,0.33399616,34207.0,34202.0,0.175]
[1625458033009,0.33399616,34207.0,34202.0,0.116]
[1625458033362,0.3337936,34204.0,34202.0,0.116]
[1625458033913,0.3337936,34204.0,34203.0,0.1]
[1625458034013,0.3337936,34204.0,34203.0,0.159]
[1625458034119,0.33391585,34205.0,34203.0,0.216]
[1625458034216,0.33391585,34205.0,34203.0,0.47684]
[1625458034515,0.33391585,34205.0,34203.0,0.37684]
[1625458034866,0.33377611,34204.0,34203.0,0.31984]
[1625458034966,0.33377611,34204.0,34203.0,0.39214]
[1625458035318,0.33386621,34205.0,34203.0,0.39214]
[1625458035416,0.33386621,34205.0,34203.0,0.2313]
[1625458035667,0.33386621,34205.0,34203.0,0.2903]
[1625458035866,0.33386621,34205.0,34204.0,0.057]
[1625458035967,0.33391796,34206.0,34204.0,0.116]
[1625458036066,0.33391796,34206.0,34204.0,0.175]
[1625458036167,0.33391796,34206.0,34204.0,0.116]
[1625458036268,0.33377981,34205.0,34204.0,0.116]
[1625458037069,0.33377981,34205.0,34204.0,0.118]
[1625458037170,0.33377981,34205.0,34204.0,0.275]
[1625458037823,0.33390058,34206.0,34204.0,0.275]
[1625458038172,0.33405402,34207.0,34204.0,0.175]
[1625458038623,1.18427544,34210.0,34204.0,0.175]
[1625458038624,0.33422002,34208.0,34204.0,0.175]
[1625458039075,1.18427544,34210.0,34204.0,0.175]
[1625458039076,0.33417221,34209.0,34204.0,0.175]
[1625458039274,0.33417221,34209.0,34207.0,0.1]
[1625458039375,0.33417221,34209.0,34208.0,0.057]
[1625458039474,0.33417221,34209.0,34208.0,0.59715088]
[1625458039575,0.33417221,34209.0,34208.0,0.65615088]
[1625458040278,0.33417221,34209.0,34208.0,0.75615088]
[1625458040376,1.16918524,34213.0,34208.0,1.05686088]
[1625458040477,0.97918524,34213.0,34208.0,1.05686088]
[1625458040828,1.50649866,34225.0,34208.0,0.95686088]
[1625458041277,0.9374,34234.0,34208.0,0.95686088]
[1625458041278,1.50526447,34224.0,34208.0,0.95686088]
[1625458041478,1.50526447,34224.0,34223.0,0.48115088]
[1625458042130,1.50526447,34224.0,34223.0,0.58115088]
[1625458042333,1.50521241,34225.0,34223.0,0.58115088]
[1625458042783,1.74611662,34226.0,34223.0,0.48115088]
[1625458043386,1.74611662,34226.0,34225.0,0.1]
[1625458043587,1.50554118,34226.0,34225.0,0.1]
[1625458043689,1.50554118,34226.0,34225.0,0.159]
[1625458043888,2.84405892,34226.0,34225.0,0.159]
[1625458044391,1.33990771,34227.0,34225.0,0.159]
[1625458044490,1.33990771,34227.0,34225.0,0.1]
[1625458044690,1.33870769,34226.0,34225.0,0.1]
[1625458044789,1.33870769,34226.0,34223.0,0.48115088]
[1625458044790,1.59814769,34226.0,34223.0,0.48115088]
[1625458044889,1.59814769,34226.0,34223.0,0.54015088]
[1625458044989,1.65714769,34226.0,34223.0,0.54015088]
[1625458045090,1.3380935,34224.0,34223.0,0.54015088]
[1625458045191,1.3380935,34224.0,34223.0,0.48115088]
[1625458045592,1.3380935,34224.0,34223.0,0.54015088]
[1625458045692,1.3380935,34224.0,34223.0,0.59915088]
[1625458045792,1.33858463,34225.0,34223.0,0.59915088]
[1625458046091,1.33858463,34225.0,34223.0,0.69915088]
[1625458046192,1.33900963,34226.0,34223.0,0.69915088]
[1625458046545,1.33900963,34226.0,34223.0,0.59915088]
[1625458046947,1.33900963,34226.0,34224.0,0.057]
[1625458047045,1.33900963,34226.0,34224.0,0.175]
[1625458047144,1.33900963,34226.0,34225.0,0.1]
[1625458047244,1.33900963,34226.0,34225.0,0.159]
[1625458048700,1.33938118,34227.0,34225.0,0.159]
[1625458049148,1.33938118,34227.0,34225.0,0.059]
[1625458049449,1.33938118,34227.0,34225.0,0.29957544]
[1625458049800,1.33938118,34227.0,34226.0,0.1]
[1625458049901,1.33938118,34227.0,34226.0,0.159]
[1625458050501,1.34355912,34228.0,34226.0,0.159]
[1625458050701,1.34355912,34228.0,34226.0,0.216]
[1625458051000,1.34355912,34228.0,34226.0,0.116]
[1625458051602,1.34355912,34228.0,34227.0,0.1]
[1625458051702,1.34355912,34228.0,34227.0,0.159]
[1625458052904,1.34355912,34228.0,34227.0,0.2313]
[1625458053005,1.34355912,34228.0,34227.0,0.3036]
[1625458055060,1.34355912,34228.0,34227.0,0.2446]
[1625458055261,1.40255912,34228.0,34227.0,0.2446]
[1625458055511,2.96768501,34228.0,34227.0,0.2446]
[1625458055610,2.90868501,34228.0,34227.0,0.2446]
[1625458056162,3.57840788,34228.0,34227.0,0.2446]
[1625458056862,3.83308788,34228.0,34227.0,0.2446]
[1625458059418,4.89974224,34228.0,34227.0,0.2446]
[1625458060647,4.91398655,34228.0,34227.0,0.2446]
[1625458060723,7.77228884,34228.0,34225.0,0.13909379]
[1625458060872,7.77228884,34228.0,34204.0,1.68384555]
[1625458060972,7.77228884,34228.0,34204.0,1.74284555]
[1625458061174,7.39514605,34226.0,34204.0,1.22872418]
[1625458061273,7.45414605,34226.0,34205.0,0.00448385]
[1625458061373,7.51314605,34226.0,34205.0,0.06348385]
[1625458061574,0.24057544,34218.0,34217.0,0.24057544]
[1625458061677,0.68477544,34218.0,34217.0,0.24057544]
[1625458062124,0.62577544,34218.0,34217.0,0.24057544]
[1625458062227,0.68477544,34218.0,34217.0,0.24057544]
[1625458062327,0.62577544,34218.0,34217.0,0.24057544]
[1625458062528,4.82943826,34218.0,34217.0,0.24057544]
[1625458062677,4.88843826,34218.0,34217.0,0.24057544]
[1625458062978,6.40206594,34218.0,34217.0,0.24057544]
[1625458063379,6.34306594,34218.0,34217.0,0.24057544]
[1625458063532,6.58364138,34218.0,34217.0,0.24057544]
[1625458063980,6.64264138,34218.0,34217.0,0.24057544]
[1625458064581,6.58364138,34218.0,34217.0,0.24057544]
[1625458066342,6.64264138,34218.0,34217.0,0.24057544]
[1625458069248,6.58364138,34218.0,34217.0,0.24057544]
[1625458069859,6.52464138,34218.0,34217.0,0.24057544]
[1625458070354,6.58364138,34218.0,34217.0,0.24057544]
[1625458072109,5.0700137,34218.0,34217.0,0.24057544]
[1625458074215,6.58340451,34218.0,34217.0,0.24057544]
[1625458074516,5.0700137,34218.0,34217.0,0.24057544]
[1625458074921,6.58325548,34218.0,34217.0,0.24057544]
[1625458075667,6.64225548,34218.0,34217.0,0.24057544]
[1625458075869,6.58325548,34218.0,34217.0,0.24057544]
[1625458076369,6.64225548,34218.0,34217.0,0.24057544]
[1625458076568,6.65651107,34218.0,34217.0,0.24057544]
[1625458076769,2.45284825,34218.0,34217.0,0.24057544]
[1625458076891,8.32976935,34218.0,34210.0,0.24057544]
[1625458077275,4.19725875,34211.0,34210.0,0.24057544]